Cogmind - Beta 9.4 @@@ ROGUE MODE // 2020.02.13 @ 12:20:53 Player: Robit-69-420 Result: Self-destructed Performance ------------- Evolutions (1) 500 Regions Visited (2) 400 Robots Destroyed (3) 15 Value Destroyed (125) 125 Prototype IDs (0) 0 Alien Tech Used (0) 0 Bonus (0) 0 TOTAL SCORE: 1040 Bonus ------- None Cogmind --------- Core Integrity 368/400 Matter 250/300 Energy 650/650 System Corruption 0% Temperature Cool (0) Movement Rolling (100) Ox1 Location -9/Materials Parts ------- > --- POWER (1) -------- Ion Engine > --- PROPULSION (4) --- Light Treads Light Treads Wheel Compact Wheel > --- UTILITY (2) ------ Large Storage Unit High-capacity Battery > --- WEAPON (2) ------- Particle Gun Assault Rifle > --- INVENTORY (10) --- Light Ion Engine Aluminum Leg Aluminum Leg Assault Rifle Peak State ------------ > --- POWER ------------ Ion Engine > --- PROPULSION ------- Light Treads Light Treads Wheel Compact Wheel > --- UTILITY ---------- Large Storage Unit High-capacity Battery > --- WEAPON ----------- Particle Gun Assault Rifle > --- INVENTORY -------- Light Ion Engine Aluminum Leg Aluminum Leg Assault Rifle [Rating: 10] Favorites ----------- Power Ion Engine Engine Ion Engine Propulsion Wheel Treads Light Treads Wheel Wheel Utility Small Storage Unit Device Integration Mediator Storage Small Storage Unit Protection Propulsion Shielding Weapon Assault Rifle Energy Gun Particle Gun Ballistic Gun Assault Rifle Build | -11 -10 -9 ------- Run | Scr Mat Mat Slots Evolved 2 | . . 2 Power . | . . . Propulsion 2 | . . 2 Utility . | . . . Weapon . | . . . Parts Attached 16 | 6 6 4 Power 2 | 1 1 . Engine 2 | 1 1 . Core . | . . . Reactor . | . . . Propulsion 6 | 2 . 4 Treads 3 | . . 3 Leg . | . . . Wheel 3 | 2 . 1 Hover . | . . . Flight . | . . . Utility 5 | 1 4 . Device 1 | . 1 . Storage 3 | 1 2 . Processor . | . . . Hackware . | . . . Protection 1 | . 1 . Artifact . | . . . Weapon 3 | 2 1 . Energy Gun 2 | 1 1 . Energy Cannon . | . . . Ballistic Gun 1 | 1 . . Ballistic Cannon . | . . . Launcher . | . . . Special Weapon . | . . . Impact Weapon . | . . . Slashing Weapon . | . . . Piercing Weapon . | . . . Special Melee Weapon . | . . . Unidentified Prototypes . | . . . Parts Lost . | . . . Power . | . . . Propulsion . | . . . Utility . | . . . Weapon . | . . . Highest Loss Streak . | . . . Average Slot Usage (%) 98 | . 97 100 Engine 12 | . 14 11 Treads 8 | . . 22 Wheel 25 | . 28 22 Device 2 | . 3 . Storage 20 | . 20 22 Protection 1 | . 1 . Energy Gun 12 | . 14 11 Ballistic Gun 12 | . 14 11 Naked Turns . | . . . Heaviest Build 30 | 11 30 30 Greatest Support 26 | 26 26 26 Greatest Overweight (x) 3 | 3 1 1 Average Overweight (x) . | . . 1 Largest Inventory Capacity 10 | 6 10 10 Average Capacity 7 | 5 6 10 Most Carried 6 | 6 6 6 Average Carried 4 | 3 6 4 Final Capacity 10 | 6 10 10 Final Carried 6 | 6 6 4 Class Distribution -------------------- 100% | Mutant Dominant Class ---------------- Mutant | -10/Materials Mutant | -9/Materials Resources | -11 -10 -9 ----------- Run | Scr Mat Mat Matter Collected 333 | 235 41 57 Remotely . | . . . Salvage Created 139 | . 41 98 Parts 6 | . 4 2 Haulers Intercepted . | . . . Recyclers Shooed . | . . . Parts Field Recycled . | . . . Retrieved Matter . | . . . Parts Self-Destructed . | . . . Prevented . | . . . Kills | -11 -10 -9 ------- Run | Scr Mat Mat Combat Hostiles Destroyed 3 | . 1 2 Guns 3 | . 1 2 Classes Destroyed 1 | . 1 . Grunt 3 | . 1 2 Best Kill Streak 1 | . 1 1 Combat Bots Only 1 | . 1 1 Max Kills in Single Turn 1 | . 1 1 Gunslinging . | . . . Exploded . | . . . Melee . | . . . Uniques/NPCs Destroyed . | . . . Combat | -11 -10 -9 -------- Run | Scr Mat Mat Damage Taken 104 | . 33 71 Core 32 | . . 32 Absorbed by Shields . | . . . Core Remaining (%) 100 | 100 100 . Volleys Fired 9 | . 3 6 Largest 2 | . 2 2 Hottest 85 | . 85 85 Shots Fired 18 | . 6 12 Gun 18 | . 6 12 Cannon . | . . . Launcher . | . . . Special . | . . . Kinetic 9 | . 3 6 Thermal 9 | . 3 6 Explosive . | . . . Electromagnetic . | . . . Robot Hit Streak 6 | . 2 6 Robot Miss Streak 2 | . 1 2 Penetration Max . | . . . Secondary Targets . | . . . Shots Hit Robots 11 | . 3 8 Core Hits 6 | . 2 4 Critical Hits . | . . . Critical Kills . | . . . Critical Parts Destroyed . | . . . Melee Attacks . | . . . Impact . | . . . Slashing . | . . . Piercing . | . . . Sneak Attacks . | . . . Combat Hostiles . | . . . Follow-up Attacks . | . . . Damage Inflicted 130 | . 45 85 Guns 130 | . 45 85 Cannons . | . . . Explosions . | . . . Melee . | . . . Ramming . | . . . Kinetic 38 | . 14 24 Thermal 92 | . 31 61 Explosive . | . . . Electromagnetic . | . . . Impact . | . . . Slashing . | . . . Piercing . | . . . Highest Corruption . | . . . Average Corruption . | . . . Corruption Purged . | . . . Overload Shots . | . . . Overflow Damage . | . . . Projectiles . | . . . Explosions . | . . . Melee . | . . . Knockbacks . | . . . Impact . | . . . Kinetic . | . . . Secondary . | . . . Self-Inflicted Damage . | . . . Shots . | . . . Rammed . | . . . Targets Rammed . | . . . Kicked . | . . . Crushed . | . . . Highest Temperature 84 | . 84 57 Average Temperature 33 | . 43 27 Received Heat Transfer 48 | . 18 30 Siege Activations . | . . . Robots Corrupted . | . . . Combat Hostiles . | . . . Parts Fried . | . . . Impact Corruptions . | . . . Robots Melted . | . . . Combat Hostiles . | . . . Parts Melted . | . . . Heat Transferred 222 | . 74 148 Parts Sabotaged . | . . . Parts Stolen . | . . . Parts Stripped . | . . . Power Chain Reactions . | . . . Missiles Intercepted . | . . . Alert | -11 -10 -9 ------- Run | Scr Mat Mat Peak Influence 83 | . 45 83 Average Influence 15 | . 4 44 Maximum Alert Level . | . . . Low Security (%) 100 | 100 100 100 Level 1 . | . . . Level 2 . | . . . Level 3 . | . . . Level 4 . | . . . Level 5 . | . . . High Security . | . . . Max Security . | . . . Squads Dispatched 2 | . 1 1 Investigation . | . . . Extermination . | . . . Reinforcement 2 | . 1 1 Assault . | . . . Garrison . | . . . Intercept . | . . . Construction Impeded . | . . . Haulers Reinforced . | . . . Stealth | -11 -10 -9 --------- Run | Scr Mat Mat Distress Signals . | . . . Communications Jammed . | . . . Distress Signals . | . . . Times Spotted 6 | . 2 4 Peak Tracking Total 3 | . 1 3 Tactical Retreats . | . . . Traps | -11 -10 -9 ------- Run | Scr Mat Mat Traps Triggered 1 | . . 1 Indirectly . | . . . Trap Hack Attempts . | . . . Triggered . | . . . Disarmed . | . . . Reprogrammed . | . . . Reused . | . . . Traps Extracted . | . . . Installed . | . . . Triggered . | . . . Machines | -11 -10 -9 ---------- Run | Scr Mat Mat Machines Disabled 1 | . . 1 Max in Single Turn 1 | . . 1 Machines Sabotaged . | . . . Garrisons Compromised . | . . . Overloaded Fab Kills . | . . . Fab Network Shutdowns . | . . . Hacking | -11 -10 -9 --------- Run | Scr Mat Mat Machines Accessed 1 | . 1 . Terminals 1 | . 1 . Fabricators . | . . . Repair Stations . | . . . Recycling Units . | . . . Scanalyzers . | . . . Garrison Access . | . . . Total Hacks 1 | . 1 . Successful 1 | . 1 . Failed . | . . . Catastrophic . | . . . Database Lockouts . | . . . Manual . | . . . Terminals 1 | . 1 . Fabricators . | . . . Repair Stations . | . . . Recycling Units . | . . . Scanalyzers . | . . . Garrison Access . | . . . Terminal Hacks 1 | . 1 . Locate Traps 1 | . 1 . Fabricator Hacks . | . . . Repair Station Hacks . | . . . Recycling Unit Hacks . | . . . Scanalyzer . | . . . Garrison Access Hacks . | . . . Unauthorized Hacks . | . . . Terminals . | . . . Fabricators . | . . . Repair Stations . | . . . Recycling Units . | . . . Scanalyzers . | . . . Garrison Access . | . . . Data Cores Recovered . | . . . Used . | . . . Hacking Detections 1 | . 1 . Full Trace Events . | . . . Feedback Events . | . . . Feedback Blocked . | . . . Robot Schematics Acquired . | . . . Robots Built . | . . . Matter . | . . . Time . | . . . Total Robot Build Rating . | . . . Part Schematics Acquired . | . . . Parts Built . | . . . Matter . | . . . Time . | . . . Total Part Build Rating . | . . . Parts Repaired . | . . . Time . | . . . Parts Recycled . | . . . Recycled Matter . | . . . Retrieved Matter . | . . . Retrieved Components . | . . . Parts Scanalyzed . | . . . Part Schematics Acquired . | . . . Parts Damaged . | . . . Bothacking | -11 -10 -9 ------------ Run | Scr Mat Mat Used RIF Installer . | . . . Robots Hacked . | . . . Non-combat . | . . . Combat . | . . . Robot Hacks Applied . | . . . Relay Couplers Released . | . . . Robots Rewired . | . . . Allies Hacked . | . . . Hacks Repelled . | . . . Allies | -11 -10 -9 -------- Run | Scr Mat Mat Total Allies . | . . . Largest Group . | . . . Highest-Rated Group . | . . . Highest-Rated Ally . | . . . Total Orders . | . . . Ally Attacks . | . . . Total Damage . | . . . Kills . | . . . Allies Corrupted . | . . . Allies Melted . | . . . Intel | -11 -10 -9 ------- Run | Scr Mat Mat Robot Analysis Total . | . . . Derelict Logs Recovered . | . . . Drone Launches . | . . . Drone Recoveries . | . . . Exploration | -11 -10 -9 ------------- Run | Scr Mat Mat Turns Passed 431 | 84 218 129 Spaces Moved 397 | 75 216 106 Core 6 | 6 . . Treads . | . . . Legs . | . . . Wheels 391 | 69 216 106 Hover . | . . . Flight . | . . . Fastest Speed 50 | 50 90 100 Average Speed 94 | 92 91 100 Slowest Speed 200 | 200 100 100 Overloaded Moves . | . . . Propulsion Burnouts . | . . . Robots Hopped . | . . . Cave-ins Triggered . | . . . Exploration Rate (%) 14 | 4 31 9 Regions Visited 2 Branch Regions . Pre-discovered Areas . | . . . Known Exits Taken . | . . . Unknown Exits Taken 2 | 1 1 . Scrap Searched . | . . . Spaces Dug . | . . . Terrain Destroyed . | . . . Melee . | . . . Projectile . | . . . AOE . | . . . Actions | -11 -10 -9 --------- Run | Scr Mat Mat Total 431 | 86 229 116 Wait . | . . . Move 395 | 74 215 106 Hop . | . . . Pick Up 6 | 6 . . Fast Attach 11 | 6 5 . Attach 2 | . . 2 Detach . | . . . Swap 3 | . 1 2 Drop 5 | . 5 . Fire 9 | . 3 6 Melee . | . . . Ram . | . . . Kick . | . . . Crush . | . . . Escape Stasis . | . . . Rewire . | . . . Trap . | . . . Miscellaneous . | . . . Route ------- -11/Scrapyard -10/Materials -9/Materials History --------- Turn | Location | Event 25 | -11/Scrapyard | Discovered new exit (range 15) 85 | -11/Scrapyard | Entered Materials 197 | -10/Materials | Discovered new exit (range 13) 303 | -10/Materials | Entered another Materials area 303 | -9/Materials | Evolved 2 slots: Propulsion x2 328 | -9/Materials | Build established: Mutant 432 | -9/Materials | Self-destructed Last Messages --------------- R-06 Scavenger collects Propulsion Shielding. Dropped Sml. Storage Unit. O-16 Technician: "IFF HANDSHAKE FAILED. SECURING TERMINAL." ALERT: Hostiles spotted, dispatching reinforcements to Terminal M006. Connecting with Terminal... G-34 Mercenary destroyed. Acquired 41 matter. PARAMETERS=PROPULSION_2 LOCATION=UNKNOWN GOAL=ESCAPE ALERT: Hostiles spotted, dispatching reinforcements to Terminal M001. G-34 Mercenary destroyed. Atomic Centrifuge disabled. G-47 Trooper destroyed. K-01 Serf collects debris. Acquired 57 matter. K-01 Serf collects debris. Triggered EMP Trap. A bubble of electromagnetic force engulfs the area. Door malfunctions. Map ----- +----------------------------------------------------+ | ???????????????????????????????????????? | | ???????????????????????????????????????? | | ???????????????????????????????????????? | | ???????????????????????????????????????? | | ???????????????????????????????????????? | | ???????????????????????????????????????? | | ???????????????????????????????????????? | | ???????????????????????????????????????? | | ???????????????????????????????????????? | | ????##################+????????????????? | | ????# ???????????????? | | ????# ???????????????? | | ????# ???????????????? | | ???#####+###########???????????????????? | | ???# #?????????????????????????? | | ???# #?????????????????????????? | | ???# #?????????????????????????? | | ???# #?????????????????????????? | | ???# #?????????????????????????? | | ???# #?????????????????????????? | | ???# #?????????????????????????? | | ???# #?????????????????????????? | | ???##+#############????????????????????? | | ????# # #????????????????????? | | ????# # #????????????????????? | | ????# # @ #????????????????????? | | ????# # """ """ #????????????????????? | | ????# # """ """ % #????????????????????? | | ????# + """ "" #????????????????????? | | ????# # [%= #????????????????????? | | ????# #########/###????????????????????? | | ????# ####???????????????????? | | ???##+####### +?????????????????? | | ???# # #####?????????????????? | | ???# """ # #?????????????????????? | | ???# """ # ########??????????????? | | ???# """ # ???????????? | | ???# + k ???????????? | | ???# """ # T ???????????? | | ???# """ # ####??????????????? | | ???# """ ## #?????????????????? | | ???# ## #?????????????????? | | ???########### !] !#?????????????????? | | ?????????????? ! #?????????????????? | | ?????????????? #?????????????????? | | ?????????????? #?????????????????? | | ?????????????? !! #?????????????????? | | ?????????????????! +?????????????????? | | ?????????????????? #?????????????????? | | ?????????????????? #?????????????????? | +----------------------------------------------------+ Best States ------------- Heat Dissipation 28 Energy Generation 10 Energy Capacity 650 Matter Stores 275 Matter Capacity 300 Sight Range 16 Terrain Scan Density 10 Propulsion Shielding 33 Evasion (%) 42 Item Schematics ----------------- None Robot Schematics ------------------ None Fabricated ------------ Nothing Alien Tech Used ----------------- None Achievements -------------- None Challenges ------------ None Game ------ Seed ModifiedHeavyBooster Manual? 0 Play Time 00:11:58 Cumulative 2.1 hours Start 2020.02.10 @ 21:44:43 End 2020.02.13 @ 12:20:53 Sessions 5 Manual Loads 0 Difficulty Rogue Special Mode None Game No. 9 Rogue 9 Adventurer 0 Explorer 0 Win Type - Total 0 Types 0/0/0/0/0/0/0 Lore% 3 Gallery% 7 Achievement% 5 Wizard Run 0 Options --------- ASCII 0 Keyboard 1 Movement Numpad Keybinds 0 Fullscreen 1 Font 18/SmallcapsGlow Map View 76x50 Tactical HUD 0 Map Filters NONE Filters NONE Steam 1 RUN: 47d3e696-670d-4788-a035-9b7e200ca2df